bitfinex-derivatives/quotes_SOLF0:USTF0_20241024
["timestamp","ask_amount","ask_price","bid_price","bid_amount"]
[1729799370469,4.34,177.25,177.16,7.8140201]
[1729799370764,10.6369201,177.22,177.19,2.8233]
[1729799371762,2.8228,177.23,177.2,2.8231]
[1729799371963,4.34,177.25,177.17,7.8140201]
[1729799372262,12.1540201,177.25,177.19,7.8140201]
[1729799372465,4.34,177.24,177.22,2.8227]
[1729799373064,7.1625,177.24,177.22,2.8227]
[1729799374571,18.7065201,177.26,177.23,2.8226]
[1729799374765,15.8842201,177.26,177.23,2.8226]
[1729799376066,7.8140201,177.25,177.23,2.8226]
[1729799376267,10.6364201,177.25,177.23,2.8226]
[1729799376474,10.6364201,177.25,177.19,7.8140201]
[1729799376771,10.6364201,177.25,177.22,2.8228]
[1729799377572,2.8224,177.25,177.22,2.8228]
[1729799378465,60.96,177.36,177.22,7.8140201]
[1729799378760,7.8140201,177.25,177.2,7.8140201]
[1729799379361,4.34,177.28,177.22,2.8227]
[1729799379561,4.34,177.28,177.17,4.34]
[1729799379562,7.8140201,177.24,177.18,7.8140201]
[1729799379768,7.8140201,177.21,177.13,6.14969765]
[1729799379964,7.8140201,177.21,177.15,7.8140201]
[1729799380471,7.8140201,177.2,177.15,7.8140201]
[1729799381771,7.8140201,177.2,177.13,5.5302]
[1729799382077,7.8140201,177.2,177.14,7.8140201]
[1729799382266,2.4532,177.23,177.1,2.56849765]
[1729799382267,7.8140201,177.18,177.1,2.56849765]
[1729799382476,7.8140201,177.15,177.09,4.34]
[1729799382664,7.8140201,177.12,177.06,2.56849765]
[1729799382863,7.8140201,177.12,177.07,2.8251]
[1729799383065,7.8140201,177.12,177.06,7.8140201]
[1729799383873,4.34,177.15,177.07,7.8140201]
[1729799384070,7.8140201,177.13,177.07,7.8140201]
[1729799384574,7.8140201,177.14,177.09,7.8140201]
[1729799385077,7.8140201,177.14,177.13,2.8243]
[1729799385970,7.8140201,177.17,177.12,7.8140201]
[1729799386668,7.8140201,177.17,177.14,2.8241]
[1729799389376,7.8140201,177.17,177.12,7.8140201]
[1729799389877,7.8140201,177.16,177.1,7.8140201]
[1729799390475,7.8140201,177.16,177.14,2.8241]
[1729799390674,7.8140201,177.16,177.1,7.8140201]
[1729799391483,1.1623,177.22,177.09,4.34]
[1729799391484,1.1623,177.22,177.14,7.8140201]
[1729799391677,7.8140201,177.17,177.12,7.8140201]
[1729799394279,7.8140201,177.17,177.16,2.8238]
[1729799394781,7.8140201,177.17,177.09,4.34]
[1729799395090,7.8140201,177.14,177.09,7.8140201]
[1729799395675,10.6382201,177.14,177.11,2.8245]
[1729799396084,10.6382201,177.14,177.09,7.8140201]
[1729799397280,7.8140201,177.13,177.04,2.56849765]
[1729799397486,7.8140201,177.11,177.06,7.8140201]
[1729799397787,7.8140201,177.11,177.08,2.8251]
[1729799397788,7.8140201,177.1,177.08,2.8251]
[1729799397992,7.8140201,177.1,177.06,7.8140201]
[1729799398388,7.8140201,177.1,177.08,2.825]
[1729799399188,7.8140201,177.1,177.08,2.8249]
[1729799399389,7.8140201,177.11,177.07,7.8140201]
[1729799399786,7.8140201,177.11,177.06,7.8140201]
[1729799400286,1.2645,177.14,177.08,7.8140201]
[1729799400485,9.0785201,177.14,177.08,7.8140201]
[1729799400880,9.0785201,177.14,177.09,2.8248]
[1729799401084,11.9027201,177.14,177.08,7.8140201]
[1729799402092,10.2961201,177.15,177.1,7.8140201]
[1729799402293,1.2251,177.15,177.11,7.8140201]
[1729799402483,12.1540201,177.18,177.14,2.8241]
[1729799402887,12.1540201,177.18,177.11,7.8140201]
[1729799403189,12.1540201,177.18,177.14,2.824]
[1729799403190,7.8140201,177.16,177.14,2.824]
[1729799404394,10.6377201,177.17,177.14,2.824]
[1729799405390,7.8140201,177.17,177.11,7.8140201]
[1729799405597,2.8242,177.14,177.07,4.34]
[1729799405794,2.8242,177.14,177.09,7.8140201]
[1729799405990,7.8140201,177.15,177.09,7.8140201]
[1729799406197,7.8140201,177.14,177.11,2.8245]
[1729799406996,7.8140201,177.14,177.09,7.8140201]
[1729799406997,10.6382201,177.14,177.12,2.8244]
[1729799407199,7.8140201,177.14,177.12,2.8244]
[1729799407395,10.6381201,177.14,177.12,2.8244]
[1729799407592,2.8241,177.14,177.12,2.8244]
[1729799408294,7.8140201,177.15,177.09,7.8140201]
[1729799408492,4.34,177.18,177.12,7.8140201]
[1729799408691,12.1540201,177.18,177.12,7.8140201]
[1729799409093,7.8140201,177.16,177.12,7.8140201]
[1729799409599,7.8140201,177.16,177.1,7.8140201]
[1729799410301,7.8140201,177.16,177.14,2.824]
[1729799411396,7.8140201,177.16,177.1,7.8140201]
[1729799411602,10.6379201,177.16,177.13,2.8242]
[1729799411799,7.8140201,177.15,177.07,7.8140201]
[1729799411997,7.8140201,177.13,177.1,2.8247]
[1729799412603,7.8140201,177.13,177.11,2.8246]
[1729799413207,12.1540201,177.14,177.11,2.8245]
[1729799413406,12.1540201,177.14,177.12,1.41265384]
[1729799413804,12.1540201,177.14,177.12,4.23705384]
[1729799414111,12.1540201,177.14,177.12,2.8244]
[1729799414504,4.34,177.14,177.12,2.8244]
[1729799415405,3.6679,177.22,177.05,4.34]
[1729799415406,4.34,177.17,177.11,7.8140201]
[1729799415614,4.34,177.17,177.13,7.8140201]
[1729799416006,12.1540201,177.17,177.15,2.8239]
[1729799416507,4.34,177.17,177.13,7.8140201]
[1729799416706,4.34,177.17,177.15,2.8238]
[1729799417414,10.6375201,177.18,177.15,2.8238]
[1729799418313,2.8235,177.18,177.15,2.8238]
[1729799419712,2.8242,177.14,177.13,1.41256495]
[1729799420110,2.8242,177.14,177.06,16.54651443]
[1729799420309,2.8242,177.14,177.11,2.8245]
[1729799420514,4.34,177.15,177.05,2.56849765]
[1729799420709,2.8246,177.12,177.04,14.77501208]
[1729799420911,2.8246,177.12,177.09,2.8248]
[1729799421115,12.20651443,177.12,177.04,2.56849765]
[1729799421315,2.8252,177.08,177.02,6.90849765]
[1729799421510,2.8252,177.08,177.02,4.34]
[1729799421716,4.34,177.11,177.06,2.8254]
[1729799422523,2.825,177.09,177.06,2.8254]
[1729799423508,2.8248,177.1,177.04,2.8256]
[1729799423813,2.8248,177.1,177.02,4.34]
[1729799424011,3.711,177.15,177.05,12.20651443]
[1729799424012,4.34,177.13,177.05,12.20651443]
[1729799424216,7.1643,177.13,177.1,2.8247]
[1729799424411,4.34,177.13,177.1,2.8247]
[1729799424613,4.34,177.13,177.05,12.20651443]
[1729799424814,2.8245,177.12,177.09,2.8249]
[1729799425216,4.34,177.13,177.05,13.61946367]
[1729799425416,7.1643,177.13,177.1,2.8246]
[1729799425613,7.1643,177.13,177.1,4.23754924]
[1729799426421,7.1643,177.13,177.1,2.8246]
[1729799427115,4.34,177.13,177.11,2.8245]
[1729799432423,2.8242,177.14,177.11,2.8245]
[1729799432628,4.34,177.15,177.07,12.20651443]
[1729799433631,4.34,177.15,177.14,2.8241]
[1729799444335,7.1637,177.17,177.14,2.8241]
[1729799446627,2.8237,177.17,177.14,2.8241]
[1729799447229,12.15359204,177.18,177.14,2.8241]
[1729799447431,2.8237,177.17,177.14,2.8241]
[1729799453233,2.8242,177.14,177.09,2.8248]
[1729799453539,2.8242,177.14,177.1,7.81359204]
[1729799453739,7.81359204,177.16,177.1,7.81359204]
[1729799453928,3.5759,177.22,177.13,7.81359204]
[1729799454134,3.5759,177.22,177.18,7.81359204]
[1729799454333,3.5759,177.22,177.11,4.34]
[1729799454334,1.1603,177.22,177.19,7.81359204]
[1729799454533,1.1603,177.22,177.2,2.8231]
[1729799461537,7.1628,177.23,177.2,2.8231]
[1729799461737,4.34,177.23,177.21,7.81359204]
[1729799462340,4.34,177.23,177.22,2.8229]
[1729799462540,4.34,177.26,177.22,2.8229]
[1729799462744,8.97769204,177.27,177.21,7.81359204]
[1729799463046,7.1623,177.26,177.23,2.8226]
[1729799463746,8.97769204,177.27,177.21,7.81359204]
[1729799463944,104.0,177.43,177.24,7.81359204]
[1729799464144,7.81359204,177.31,177.25,7.81359204]
[1729799464643,10.63539204,177.29,177.26,2.8222]
[1729799464847,7.81359204,177.29,177.24,12.86752633]
[1729799465139,7.81359204,177.29,177.24,14.27958835]
[1729799465334,2.8219,177.28,177.25,2.8223]
[1729799466450,2.8219,177.28,177.26,2.8222]
[1729799466839,2.8223,177.26,177.2,7.81359204]
[1729799467041,7.81359204,177.25,177.2,7.81359204]
[1729799467342,10.63599204,177.25,177.22,2.8228]
[1729799467546,4.34,177.32,177.24,7.81359204]
[1729799467848,7.81359204,177.31,177.24,7.81359204]
[1729799468340,2.8217,177.29,177.26,2.8221]
[1729799469043,10.63529204,177.29,177.26,2.8221]
[1729799469749,2.822,177.28,177.25,2.8222]
[1729799470449,2.822,177.28,177.26,2.8222]
[1729799470837,7.81359204,177.29,177.23,7.81359204]
[1729799471037,7.81359204,177.29,177.26,2.8222]
[1729799471642,10.63539204,177.29,177.26,2.8222]
[1729799471943,7.81359204,177.28,177.25,2.8223]
[1729799472145,10.63549204,177.28,177.23,7.81359204]
[1729799472542,7.81359204,177.28,177.26,2.8222]
[1729799472738,7.81359204,177.29,177.26,2.8222]
[1729799473044,7.81359204,177.29,177.23,7.81359204]
[1729799473246,7.81359204,177.29,177.27,2.822]
[1729799473748,7.81359204,177.29,177.22,4.34]
[1729799473749,7.81359204,177.29,177.28,2.8219]
[1729799474048,7.81359204,177.29,177.24,7.81359204]
[1729799474250,7.81359204,177.29,177.27,2.822]
[1729799474451,3.683,177.35,177.26,7.81359204]
[1729799474647,3.683,177.35,177.29,7.81359204]
[1729799474648,11.49659204,177.35,177.29,7.81359204]
[1729799474851,1.2485,177.35,177.33,2.821]
[1729799475039,12.15359204,177.36,177.31,7.81359204]
[1729799475441,12.15359204,177.36,177.32,2.8212]
[1729799475645,7.81359204,177.33,177.29,7.81359204]
[1729799476145,7.81359204,177.33,177.3,2.8215]
[1729799476344,7.81359204,177.33,177.29,7.81359204]
[1729799476547,7.81359204,177.35,177.29,7.81359204]
[1729799477349,7.81359204,177.35,177.32,5.04472211]
[1729799477652,7.81359204,177.35,177.32,6.45582126]
[1729799477653,2.821,177.34,177.32,6.45582126]
[1729799477847,7.81359204,177.36,177.32,6.45582126]
[1729799478045,12.15359204,177.38,177.33,7.81359204]
[1729799478940,11.79879204,177.41,177.37,2.8204]
[1729799479140,13.31889204,177.41,177.37,2.8204]
[1729799480148,16.13879204,177.41,177.37,2.8204]
[1729799480642,2.82,177.4,177.37,2.8204]
[1729799481240,13.31889204,177.41,177.37,2.8204]
[1729799481449,16.13879204,177.41,177.37,2.8204]
[1729799482349,11.79879204,177.41,177.38,1.41080115]
[1729799482650,16.13879204,177.41,177.38,1.41080115]
[1729799483155,16.13879204,177.41,177.38,4.23100115]
[1729799485244,7.1597,177.42,177.39,2.82]
[1729799485449,4.34,177.42,177.39,2.82]
[1729799486153,7.81359204,177.43,177.39,2.82]
[1729799486348,2.8197,177.42,177.39,2.82]
[1729799488160,7.81359204,177.41,177.39,2.82]
[1729799488357,7.81359204,177.41,177.38,2.8203]
[1729799489154,10.63389204,177.39,177.36,2.8206]
[1729799489353,7.81359204,177.39,177.33,7.81359204]
[1729799489659,7.81359204,177.39,177.36,2.8206]
[1729799489859,7.81359204,177.39,177.35,7.81359204]
[1729799490258,7.81359204,177.39,177.31,4.34]
[1729799490449,7.81359204,177.41,177.36,7.81359204]
[1729799491354,10.63349204,177.41,177.37,2.8204]
[1729799491663,7.81359204,177.39,177.37,2.8204]
[1729799492056,2.8201,177.4,177.37,2.8204]
[1729799492266,7.81359204,177.39,177.37,2.8204]
[1729799492563,7.81359204,177.38,177.32,7.81359204]
[1729799493266,10.63409204,177.38,177.34,2.8208]
[1729799493563,7.81359204,177.38,177.34,2.8208]
[1729799493765,2.8205,177.37,177.34,2.8208]
[1729799493964,2.8205,177.37,177.35,2.8207]
[1729799494460,2.8205,177.37,177.32,7.81359204]
[1729799494760,7.81359204,177.35,177.33,2.821]
[1729799494961,2.8208,177.36,177.33,2.821]
[1729799495163,7.81359204,177.35,177.33,2.821]
[1729799496965,10.63439204,177.35,177.33,2.821]
[1729799498163,2.8215,177.31,177.28,5.41964602]
[1729799498360,7.81359204,177.3,177.25,10.41143806]
[1729799498560,4.34,177.32,177.28,7.81359204]
[1729799498767,4.34,177.32,177.31,2.8214]
[1729799499967,4.34,177.33,177.31,2.8214]
[1729799500462,4.34,177.35,177.34,2.8209]
[1729799500868,4.34,177.35,177.28,2.59784602]
[1729799501063,4.34,177.35,177.27,9.04843808]
[1729799501064,7.81359204,177.34,177.27,3.85274602]
[1729799501365,7.81359204,177.31,177.26,2.59784602]
[1729799501569,7.81359204,177.3,177.29,2.8217]
[1729799502269,7.81359204,177.3,177.28,2.8219]
[1729799502665,7.81359204,177.3,177.25,7.81359204]
[1729799502973,10.63539204,177.29,177.26,2.8221]
[1729799503471,10.63539204,177.29,177.24,2.8224]
[1729799503672,10.63539204,177.29,177.23,2.59784602]
[1729799503872,7.81359204,177.29,177.25,7.81359204]
[1729799504580,10.63529204,177.29,177.27,2.822]
[1729799505064,7.81359204,177.3,177.25,7.81359204]
[1729799505278,7.81359204,177.29,177.23,10.41143806]
[1729799505473,7.81359204,177.29,177.24,1.73197868]
[1729799505664,7.81359204,177.29,177.25,2.8223]
[1729799505665,10.63539204,177.29,177.25,2.8223]
[1729799505865,10.63539204,177.29,177.23,10.41143806]
[1729799506061,10.63539204,177.29,177.24,1.73219074]
[1729799506268,10.63539204,177.29,177.26,2.8221]
[1729799506867,10.63539204,177.29,177.27,2.822]
[1729799508165,4.34,177.31,177.26,7.81359204]
[1729799508365,4.34,177.31,177.27,7.81359204]
[1729799508567,7.81359204,177.29,177.25,2.59784602]
[1729799508764,7.81359204,177.29,177.24,10.41143806]
[1729799508972,7.81359204,177.28,177.26,2.8222]
[1729799510670,7.81359204,177.28,177.27,2.822]
[1729799510875,7.81359204,177.28,177.23,7.81359204]
[1729799511174,3.7479,177.34,177.21,2.59784602]
[1729799511175,7.81359204,177.25,177.21,2.59784602]
[1729799511470,7.81359204,177.25,177.22,1.73568006]
[1729799511675,7.81359204,177.25,177.2,10.41143806]
[1729799511865,7.81359204,177.25,177.23,2.8226]
[1729799514374,2.8228,177.23,177.19,2.8232]
[1729799514573,4.32,177.22,177.18,7.81359204]
[1729799514768,4.32,177.22,177.19,7.81359204]
[1729799515068,4.32,177.22,177.14,5.13714602]
[1729799515069,4.32,177.22,177.18,7.81359204]
[1729799515381,4.32,177.22,177.19,2.8233]
[1729799515576,12.13359204,177.22,177.19,2.8233]
[1729799515877,14.95649204,177.22,177.19,2.8233]
[1729799516974,12.13359204,177.22,177.16,7.81359204]
[1729799518176,2.823,177.21,177.16,7.81359204]
[1729799519076,10.63659204,177.21,177.16,7.81359204]
[1729799519275,10.63659204,177.21,177.18,2.8234]
[1729799520177,7.81359204,177.19,177.16,2.8237]
[1729799520366,7.81359204,177.19,177.15,7.81359204]
[1729799520571,5.6431,177.31,177.18,7.81359204]
[1729799520572,4.34,177.21,177.18,7.81359204]
[1729799520777,4.34,177.21,177.19,7.81359204]
[1729799520977,4.34,177.21,177.2,2.8232]
[1729799521176,4.34,177.21,177.11,5.6492]
[1729799521177,12.15359204,177.21,177.11,5.6492]
[1729799521476,2.8233,177.19,177.16,2.8237]
[1729799522880,2.8233,177.19,177.15,7.81359204]
[1729799523476,10.63689204,177.19,177.13,7.81359204]
[1729799523779,10.63689204,177.19,177.17,2.8236]
[1729799525077,4.34,177.2,177.16,7.81359204]
[1729799525383,4.34,177.22,177.19,7.81359204]
[1729799525584,4.34,177.22,177.21,2.823]
[1729799525773,7.81359204,177.23,177.19,7.81359204]
[1729799525979,12.15359204,177.23,177.19,7.81359204]
[1729799526178,12.15359204,177.23,177.21,2.823]
[1729799526179,14.97639204,177.23,177.21,2.823]
[1729799526381,14.97639204,177.23,177.13,4.34]
[1729799526382,7.81359204,177.22,177.13,4.34]
[1729799526585,7.81359204,177.22,177.17,7.81359204]
[1729799526881,7.81359204,177.22,177.2,2.8231]
[1729799527378,14.97629204,177.23,177.2,2.8231]
[1729799527788,7.81359204,177.22,177.2,2.8231]
[1729799528278,7.81359204,177.22,177.17,7.81359204]
[1729799528279,7.81359204,177.21,177.16,7.81359204]
[1729799528676,10.63669204,177.21,177.16,7.81359204]
[1729799528883,10.63669204,177.21,177.17,2.8236]
[1729799529080,10.63669204,177.21,177.16,7.81359204]
[1729799529582,10.63669204,177.21,177.18,2.8233]
[1729799529984,10.63669204,177.21,177.15,7.81359204]
[1729799529985,7.81359204,177.21,177.15,7.81359204]
[1729799530284,4.34,177.23,177.16,7.81359204]
[1729799530285,7.81359204,177.22,177.16,7.81359204]
[1729799530678,7.81359204,177.22,177.21,2.823]
[1729799531385,2.8225,177.25,177.22,2.8227]
[1729799531580,12.13359204,177.24,177.22,2.8227]
[1729799532184,12.13359204,177.24,177.23,2.8227]
[1729799534783,12.13359204,177.24,177.18,7.81359204]
[1729799534985,7.81359204,177.21,177.16,7.81359204]
[1729799535379,7.81359204,177.21,177.17,2.8236]
[1729799535586,7.81359204,177.21,177.16,7.81359204]
[1729799536184,7.81359204,177.21,177.2,2.8232]
[1729799538289,10.63669204,177.21,177.19,2.8233]
[1729799538490,7.81359204,177.21,177.19,2.8233]
[1729799539196,7.81359204,177.21,177.2,2.8232]
[1729799545184,7.81359204,177.21,177.15,2.59784602]
[1729799545387,7.81359204,177.16,177.15,2.59784602]
[1729799545788,7.81359204,177.16,177.15,5.42184602]
[1729799546702,7.81359204,177.16,177.15,2.824]
[1729799547994,7.81359204,177.16,177.14,2.824]
[1729799548198,7.81359204,177.15,177.14,2.824]
[1729799548498,10.63759204,177.15,177.13,2.8243]
[1729799548691,7.81359204,177.15,177.09,7.81359204]
[1729799549894,7.81359204,177.15,177.1,5.0097697]
[1729799550193,4.32,177.18,177.11,2.8245]
[1729799550391,7.81359204,177.12,177.1,5.0097697]
[1729799550695,7.81359204,177.12,177.1,7.8343697]
[1729799551195,7.81359204,177.12,177.11,2.8246]
[1729799551498,7.81359204,177.12,177.1,5.0097697]
[1729799551994,7.81359204,177.12,177.1,7.8344697]
[1729799552397,7.81359204,177.12,177.1,5.0097697]
[1729799553495,4.32,177.13,177.1,5.0097697]
[1729799553693,7.81359204,177.11,177.1,5.0097697]
[1729799556700,7.81359204,177.11,177.09,2.8249]
[1729799557493,4.32,177.1,177.03,10.41823081]
[1729799557698,7.81359204,177.1,177.05,7.81359204]
[1729799557894,1.1983,177.15,177.05,7.81359204]
[1729799558096,4.34,177.14,177.12,2.8243]
[1729799558302,12.15359204,177.14,177.12,2.8243]
[1729799559201,12.15359204,177.15,177.09,7.81359204]
[1729799559401,12.15359204,177.15,177.14,2.8241]
[1729799562308,4.34,177.15,177.14,2.8241]
[1729799563104,12.13359204,177.16,177.15,2.824]
[1729799569120,2.3764,177.22,177.08,3.86026741]
[1729799569320,2.3764,177.22,177.17,2.8236]
[1729799569321,7.81359204,177.18,177.17,2.8236]
[1729799569516,7.81359204,177.19,177.14,7.81359204]
[1729799569712,12.13359204,177.19,177.18,2.8234]
[1729799570308,7.81359204,177.23,177.18,7.81359204]
[1729799570522,7.81359204,177.23,177.21,2.8229]
[1729799570721,7.81359204,177.23,177.18,7.81359204]
[1729799571111,7.81359204,177.23,177.22,2.8228]
[1729799571314,7.1425,177.25,177.14,1.2695]
[1729799571315,7.81359204,177.25,177.19,7.81359204]
[1729799571521,7.81359204,177.26,177.21,7.81359204]
[1729799571922,4.32,177.27,177.25,2.8224]
[1729799572123,7.81359204,177.28,177.22,7.81359204]
[1729799572315,12.13359204,177.29,177.24,7.81359204]
[1729799572521,12.13359204,177.29,177.28,2.8217]
[1729799572718,7.81359204,177.29,177.28,2.8217]
[1729799573922,7.81359204,177.29,177.27,2.822]
[1729799574525,7.81359204,177.29,177.24,7.81359204]
[1729799574722,7.81359204,177.29,177.28,2.8219]
[1729799579329,7.81359204,177.31,177.3,2.8214]
[1729799581128,7.81359204,177.33,177.32,2.8212]
[1729799581734,7.81359204,177.33,177.28,2.8218]
[1729799581924,7.81359204,177.29,177.28,2.8218]
[1729799582328,7.81359204,177.29,177.22,7.81359204]
[1729799582534,7.81359204,177.29,177.21,4.32]
[1729799582535,7.81359204,177.26,177.21,12.13359204]
[1729799583228,7.81359204,177.26,177.25,2.8223]
[1729799586738,7.81359204,177.28,177.27,2.8219]
[1729799591633,4.32,177.31,177.28,2.8217]
[1729799591828,7.81359204,177.3,177.28,2.8217]
[1729799593336,7.81359204,177.33,177.32,2.8211]
[1729799593532,3.5828,177.34,177.29,7.81359204]
[1729799593533,7.81359204,177.34,177.29,7.81359204]
[1729799594145,7.81359204,177.34,177.33,2.8211]
[1729799601838,7.81359204,177.34,177.25,2.5073]
[1729799602141,7.81359204,177.28,177.24,4.32]
[1729799603146,7.81359204,177.28,177.27,2.822]
[1729799603446,7.81359204,177.29,177.24,4.32]
[1729799603642,7.81359204,177.29,177.24,12.13359204]
[1729799604145,7.81359204,177.29,177.26,4.98864514]
[1729799604849,7.81359204,177.3,177.29,2.8216]
[1729799607041,2.4733,177.35,177.25,2.59676741]
[1729799607042,7.81359204,177.33,177.27,7.81359204]
[1729799608245,7.81359204,177.33,177.31,2.8213]
[1729799609244,7.81359204,177.32,177.26,2.59676741]
[1729799609452,7.81359204,177.32,177.27,1.73938122]
[1729799610052,4.32,177.34,177.27,9.55297326]
[1729799610254,7.81359204,177.32,177.27,7.81359204]
[1729799611252,7.81359204,177.32,177.31,2.8214]
[1729799611948,4.32,177.34,177.29,7.81359204]
[1729799612153,4.32,177.34,177.33,2.8211]
[1729799612350,12.13359204,177.34,177.27,7.81359204]
[1729799612549,12.13359204,177.34,177.32,2.8211]
[1729799612943,12.13359204,177.34,177.27,7.81359204]
[1729799613149,12.13359204,177.34,177.29,2.8217]
[1729799613349,12.13359204,177.34,177.27,7.81359204]
[1729799614153,12.13359204,177.34,177.33,2.8211]
[1729799614656,4.32,177.34,177.33,2.8211]
[1729799617051,1.2142,177.35,177.34,2.8209]
[1729799617255,12.13359204,177.36,177.3,7.81359204]
[1729799618146,12.13359204,177.36,177.34,2.8209]
[1729799619159,12.13359204,177.36,177.25,3.83786741]
[1729799619357,7.81359204,177.29,177.28,2.8217]
[1729799619554,7.81359204,177.29,177.23,10.41035945]
[1729799619749,7.81359204,177.27,177.26,2.8222]
[1729799622654,2.8217,177.3,177.27,2.8219]
[1729799622655,7.81359204,177.28,177.27,2.8219]
[1729799623549,7.81359204,177.3,177.28,2.8218]
[1729799623860,10.63499204,177.31,177.28,2.8218]
[1729799627255,7.81359204,177.29,177.28,2.8218]
[1729799631265,7.81359204,177.29,177.27,2.822]
[1729799634352,10.63559204,177.28,177.25,2.8222]
[1729799637374,2.822,177.28,177.25,2.8222]
[1729799637573,7.81359204,177.29,177.23,7.81359204]
[1729799637774,3.6482,177.34,177.26,7.81359204]
[1729799638068,15.78179204,177.34,177.32,2.8211]
[1729799639064,15.78179204,177.34,177.31,2.8213]
[1729799639870,7.9682,177.34,177.28,7.81359204]
[1729799640070,7.81359204,177.33,177.3,2.8214]
[1729799641667,7.81359204,177.33,177.27,7.81359204]
[1729799641872,7.81359204,177.31,177.29,2.8217]
[1729799642572,7.81359204,177.3,177.28,2.8218]
[1729799646576,7.81359204,177.3,177.27,2.8219]
[1729799647774,7.81359204,177.3,177.28,2.8218]
[1729799648076,7.81359204,177.3,177.22,4.32]
[1729799648077,7.81359204,177.29,177.23,7.81359204]
[1729799648280,7.81359204,177.29,177.27,2.822]
[1729799649276,10.63539204,177.29,177.25,2.8222]
[1729799649772,7.81359204,177.29,177.25,2.8222]
[1729799649978,2.8219,177.28,177.25,2.8222]
[1729799650170,7.81359204,177.29,177.25,2.8222]
[1729799650372,7.81359204,177.29,177.22,4.32]
[1729799650373,4.32,177.3,177.27,2.8219]
[1729799650572,7.81359204,177.29,177.27,2.8219]
[1729799652679,7.81359204,177.29,177.26,2.8221]
[1729799653683,7.81359204,177.29,177.27,2.822]
[1729799656082,7.81359204,177.29,177.28,5.03106674]
[1729799656986,7.81359204,177.29,177.27,2.822]
[1729799658386,7.81359204,177.29,177.22,4.32]
[1729799658586,7.81359204,177.28,177.26,2.8222]
[1729799658888,7.81359204,177.28,177.22,12.13359204]
[1729799660297,7.81359204,177.28,177.27,2.822]
[1729799662596,7.81359204,177.29,177.27,2.822]
[1729799662795,7.81359204,177.29,177.27,2.8219]
[1729799663196,7.81359204,177.29,177.23,7.81359204]
[1729799663395,7.81359204,177.29,177.28,2.8218]
[1729799663592,7.81359204,177.32,177.28,7.81359204]
[1729799663791,15.76179204,177.34,177.28,7.81359204]
[1729799663995,15.76179204,177.34,177.31,2.8213]
[1729799663996,18.58269204,177.34,177.31,2.8213]
[1729799664199,7.9482,177.34,177.28,7.81359204]
[1729799664393,7.9482,177.34,177.3,7.81359204]
[1729799664594,15.76179204,177.34,177.31,2.8212]
[1729799666399,15.76179204,177.34,177.28,7.81359204]
[1729799666599,15.76179204,177.34,177.32,2.8212]
[1729799667801,7.9482,177.34,177.32,2.8212]
[1729799668005,7.81359204,177.33,177.32,2.8212]
[1729799669997,10.63469204,177.33,177.3,2.8214]
[1729799670203,7.81359204,177.32,177.3,2.8214]
[1729799671098,7.81359204,177.31,177.26,4.3]
[1729799671404,3.6482,177.34,177.24,7.81359204]
[1729799671405,7.81359204,177.28,177.24,7.81359204]
[1729799672001,7.81359204,177.28,177.21,2.60145253]
[1729799672203,7.81359204,177.28,177.23,7.81359204]
[1729799673005,7.81359204,177.28,177.26,2.8222]
[1729799675006,7.81359204,177.28,177.27,5.0282077]
[1729799675698,2.8218,177.29,177.27,5.0282077]
[1729799675900,7.81359204,177.28,177.27,5.0282077]
[1729799676299,7.81359204,177.28,177.26,2.8222]
[1729799677315,10.63549204,177.28,177.21,6.90145253]
[1729799677507,10.63549204,177.28,177.23,7.81359204]
[1729799678105,2.8219,177.28,177.23,7.81359204]
[1729799678308,2.8219,177.28,177.25,2.8223]
[1729799678613,7.81359204,177.27,177.25,2.8223]
[1729799680215,2.8219,177.28,177.26,1.41128587]
[1729799680508,7.81359204,177.28,177.26,1.41128587]
[1729799680903,4.3,177.31,177.26,1.41128587]
[1729799681108,7.81359204,177.29,177.27,2.8219]
[1729799681310,3.6482,177.34,177.26,9.22487791]
[1729799681608,7.81359204,177.31,177.3,2.8215]
[1729799681815,12.11359204,177.33,177.28,7.81359204]
[1729799682216,12.11359204,177.33,177.3,2.8214]
[1729799682514,12.11359204,177.33,177.28,7.81359204]
[1729799682704,12.11359204,177.33,177.29,2.8216]
[1729799682907,12.11359204,177.33,177.28,7.81359204]
[1729799683310,4.3,177.33,177.28,7.81359204]